bitfinex-derivatives/quotes_SOLF0:USTF0_20250114
["timestamp","ask_amount","ask_price","bid_price","bid_amount"]
[1736815585146,12.99409559,182.55,182.37,379.5559023]
[1736815585352,12.99409559,182.52,182.41,3.1611]
[1736815585546,2.7415,182.46,182.41,3.1611]
[1736815586649,2.7415,182.46,182.41,5.9033]
[1736815586849,2.7417,182.45,182.41,5.9033]
[1736815589751,2.7417,182.45,182.42,2.7421]
[1736815589952,2.7417,182.45,182.41,3.1611]
[1736815590450,2.7417,182.45,182.41,5.9032]
[1736815590659,2.7417,182.45,182.41,3.1611]
[1736815590858,2.7417,182.45,182.39,12.99409559]
[1736815591051,2.7417,182.45,182.38,8.4427]
[1736815591252,2.7417,182.45,182.37,288.0]
[1736815591450,2.7417,182.45,182.37,290.7427]
[1736815592160,2.7417,182.45,182.37,288.0]
[1736815592363,2.7417,182.45,182.38,2.7427]
[1736815592757,2.7424,182.41,182.36,12.99409559]
[1736815593357,2.7424,182.41,182.36,15.73709559]
[1736815593865,2.7425,182.4,182.36,2.743]
[1736815594163,2.7425,182.4,182.36,15.73709559]
[1736815595067,2.7425,182.4,182.37,2.7428]
[1736815598071,2.7425,182.4,182.36,12.99409559]
[1736815598072,12.99409559,182.49,182.38,2.7427]
[1736815598768,10.08430468,182.5,182.39,12.99409559]
[1736815599271,2.7416,182.46,182.42,2.742]
[1736815599567,10.08430468,182.5,182.39,12.99409559]
[1736815599970,2.7414,182.47,182.43,2.7419]
[1736815600371,2.7412,182.48,182.44,2.7418]
[1736815600769,10.08430468,182.5,182.42,12.99409559]
[1736815601174,10.08430468,182.5,182.42,203.99409559]
[1736815601469,12.82530468,182.5,182.45,2.7416]
[1736815601670,10.08430468,182.5,182.45,2.7416]
[1736815602077,12.82530468,182.5,182.45,2.7416]
[1736815602277,10.08430468,182.5,182.45,2.7416]
[1736815603280,10.08430468,182.5,182.43,2.7418]
[1736815603876,2.7413,182.48,182.43,2.7418]
[1736815605583,2.7414,182.47,182.43,2.7418]
[1736815605980,10.08430468,182.5,182.43,2.7418]
[1736815606279,10.08430468,182.5,182.42,203.99409559]
[1736815607181,2.7417,182.45,182.42,206.73619559]
[1736815609579,10.08430468,182.5,182.43,2.7418]
[1736815609782,10.08430468,182.5,182.42,203.99409559]
[1736815610283,2.7415,182.47,182.44,2.7418]
[1736815611284,2.7415,182.46,182.44,2.7418]
[1736815611481,10.08430468,182.5,182.42,203.99409559]
[1736815611778,12.99409559,182.49,182.42,191.0]
[1736815612088,12.99409559,182.46,182.36,191.0]
[1736815612486,2.7425,182.4,182.36,193.743]
[1736815613886,12.99409559,182.46,182.37,2.7427]
[1736815614386,12.99409559,182.46,182.36,193.743]
[1736815614684,2.742,182.43,182.36,191.0]
[1736815614888,12.99409559,182.46,182.36,191.0]
[1736815615081,12.99409559,182.46,182.37,2.7427]
[1736815615482,2.742,182.43,182.36,191.0]
[1736815616485,12.99409559,182.46,182.36,203.99409559]
[1736815616689,2.7418,182.44,182.36,203.99409559]
[1736815617481,2.7417,182.45,182.36,203.99409559]
[1736815617680,12.99409559,182.49,182.39,12.99409559]
[1736815618088,2.7416,182.46,182.42,2.742]
[1736815618280,10.08430468,182.5,182.39,12.99409559]
[1736815618485,10.08430468,182.5,182.4,7.285]
[1736815618783,10.08430468,182.5,182.42,12.99409559]
[1736815619293,12.82530468,182.5,182.45,2.7415]
[1736815620287,10.08430468,182.5,182.42,12.99409559]
[1736815620892,10.08430468,182.5,182.46,2.7414]
[1736815622392,10.08430468,182.5,182.42,12.99409559]
[1736815622594,2.7412,182.48,182.44,2.7417]
[1736815623795,2.7415,182.47,182.43,2.742]
[1736815623991,10.08430468,182.5,182.43,2.742]
[1736815624492,2.7412,182.48,182.43,2.742]
[1736815624891,10.08430468,182.5,182.43,2.742]
[1736815625292,2.7412,182.48,182.43,2.742]
[1736815626297,10.08430468,182.5,182.43,2.742]
[1736815626496,2.7414,182.47,182.43,2.742]
[1736815628700,12.99409559,182.49,182.41,199.9412]
[1736815628894,12.99409559,182.49,182.41,194.2612]
[1736815629599,2.742,182.43,182.41,191.0]
[1736815631491,2.7421,182.42,182.37,5.9011]
[1736815632799,12.99409559,182.46,182.37,3.1584]
[1736815633605,2.7423,182.41,182.37,5.9012]
[1736815633901,14.55869559,182.49,182.37,194.1584]
[1736815634104,2.7419,182.44,182.4,2.7424]
[1736815634404,126.15069373,182.5,182.39,12.99409559]
[1736815634806,126.15069373,182.5,182.41,2.7422]
[1736815635307,2.7416,182.46,182.41,2.7422]
[1736815635599,120.47069373,182.5,182.39,12.99409559]
[1736815636405,120.47069373,182.5,182.42,2.742]
[1736815636406,2.7415,182.46,182.42,2.742]
[1736815637004,2.7421,182.42,182.38,2.7427]
[1736815638910,12.99409559,182.49,182.38,191.0]
[1736815639210,10.08430468,182.5,182.38,191.0]
[1736815640004,2.7419,182.44,182.4,2.7424]
[1736815640206,10.08430468,182.5,182.4,2.7424]
[1736815640506,12.99409559,182.49,182.4,2.7424]
[1736815640806,12.99409559,182.49,182.38,191.0]
[1736815641005,2.742,182.43,182.39,2.7425]
[1736815644811,2.7421,182.42,182.39,2.7425]
[1736815647710,2.7421,182.42,182.39,11.05556116]
[1736815653519,2.7421,182.42,182.4,2.7424]
[1736815657422,8.31306116,182.45,182.4,2.7424]
[1736815657618,2.7421,182.43,182.4,2.7424]
[1736815661926,2.7421,182.43,182.39,8.31306116]
[1736815661927,2.7422,182.42,182.38,191.0]
[1736815662433,2.7422,182.42,182.39,2.7424]
[1736815662634,2.7422,182.42,182.38,191.0]
[1736815663725,2.7422,182.42,182.39,2.7425]
[1736815664131,8.31306116,182.45,182.39,2.7425]
[1736815664434,2.7426,182.39,182.38,191.0]
[1736815666835,2.743,182.36,182.33,11.05646116]
[1736815667431,2.7432,182.35,182.33,8.31306116]
[1736815667730,8.31306116,182.35,182.31,3.1742]
[1736815667935,2.7438,182.31,182.29,38.75543346]
[1736815668238,8.31306116,182.33,182.29,30.4423723]
[1736815668831,2.7439,182.31,182.26,12.69776116]
[1736815669235,2.7438,182.31,182.26,12.69776116]
[1736815669435,8.31306116,182.33,182.26,9.95336116]
[1736815670024,2.7438,182.31,182.26,9.95336116]
[1736815670730,2.7438,182.31,182.26,12.69786116]
[1736815671132,11.05686116,182.31,182.26,12.69786116]
[1736815673939,8.31306116,182.31,182.25,1.6139]
[1736815674534,2.7443,182.28,182.25,1.6139]
[1736815676037,2.7441,182.29,182.25,1.6139]
[1736815676333,2.7441,182.29,182.25,1.55926771]
[1736815678638,8.31306116,182.33,182.26,8.31306116]
[1736815679538,1.8285,182.38,182.26,8.31306116]
[1736815679728,8.31306116,182.33,182.26,8.31306116]
[1736815680134,2.7438,182.31,182.27,2.7443]
[1736815681731,8.31306116,182.33,182.25,1.55926771]
[1736815681732,2.7435,182.33,182.28,8.31306116]
[1736815681939,2.7435,182.33,182.3,8.31306116]
[1736815682233,2.7441,182.3,182.26,8.31306116]
[1736815682432,8.31306116,182.31,182.26,8.31306116]
[1736815682941,2.7442,182.29,182.26,8.31306116]
[1736815683142,8.31306116,182.31,182.26,8.31306116]
[1736815683334,2.7442,182.28,182.26,8.31306116]
[1736815683536,8.31306116,182.31,182.26,8.31306116]
[1736815684835,2.7442,182.29,182.26,8.31306116]
[1736815686142,2.744,182.3,182.26,11.05746116]
[1736815686944,8.31306116,182.33,182.28,8.31306116]
[1736815688137,2.7437,182.32,182.28,11.05726116]
[1736815690245,2.7442,182.29,182.26,8.31306116]
[1736815690739,2.7438,182.31,182.26,11.05746116]
[1736815691044,8.31306116,182.33,182.28,8.31306116]
[1736815692043,2.7437,182.32,182.28,11.05726116]
[1736815692838,2.7438,182.31,182.28,8.31306116]
[1736815694743,2.7438,182.31,182.28,11.05726116]
[1736815695344,150.39069694,182.49,182.3,8.31306116]
[1736815695544,8.31306116,182.37,182.3,8.31306116]
[1736815695947,2.7433,182.34,182.31,2.7437]
[1736815698749,2.7433,182.34,182.3,11.05696116]
[1736815701048,2.7435,182.33,182.3,11.05696116]
[1736815702849,8.31306116,182.37,182.3,8.31306116]
[1736815703053,2.7436,182.32,182.3,8.31306116]
[1736815707554,10.962,182.53,182.3,8.31306116]
[1736815707758,8.31306116,182.42,182.34,8.31306116]
[1736815707959,8.31306116,182.42,182.36,8.31306116]
[1736815708559,5.9855263,182.45,182.36,8.31306116]
[1736815708764,8.31306116,182.43,182.38,8.31306116]
[1736815709862,2.7423,182.41,182.38,8.31306116]
[1736815710161,8.31306116,182.39,182.34,8.31306116]
[1736815710560,2.7428,182.38,182.34,2.7433]
[1736815710854,2.7428,182.38,182.33,8.31306116]
[1736815711363,2.7429,182.37,182.33,11.05646116]
[1736815712261,2.7435,182.33,182.31,191.0]
[1736815712559,8.31306116,182.33,182.31,191.0]
[1736815713059,2.7436,182.32,182.31,191.0]
[1736815714462,2.7442,182.29,182.26,1.5968]
[1736815714856,2.7442,182.29,182.25,11.05766116]
[1736815717261,8.31306116,182.31,182.25,8.31306116]
[1736815717562,2.744,182.3,182.26,2.7445]
[1736815719059,2.744,182.3,182.25,8.31306116]
[1736815719265,2.744,182.3,182.25,11.05766116]
[1736815722165,2.7445,182.27,182.24,191.0]
[1736815722365,8.31306116,182.29,182.22,3.2368]
[1736815722664,8.31306116,182.27,182.19,7.61059307]
[1736815722867,8.31306116,182.27,182.19,15.92365423]
[1736815723364,8.31306116,182.24,182.17,3.2551]
[1736815723557,8.31306116,182.24,182.17,11.56816116]
[1736815723755,8.31306116,182.22,182.17,11.56816116]
[1736815724159,8.31306116,182.22,182.15,8.31306116]
[1736815724371,8.31306116,182.2,182.15,8.31306116]
[1736815724765,2.746,182.17,182.15,8.31306116]
[1736815725469,2.7455,182.2,182.15,8.31306116]
[1736815725660,2.7455,182.2,182.18,8.31306116]
[1736815725859,8.31306116,182.23,182.16,8.31306116]
[1736815726064,8.31306116,182.21,182.16,8.31306116]
[1736815726970,8.31306116,182.21,182.15,8.31306116]
[1736815727372,8.31306116,182.21,182.14,8.31306116]
[1736815727563,8.31306116,182.19,182.14,8.31306116]
[1736815727969,2.746,182.17,182.14,8.31306116]
[1736815729271,8.31306116,182.15,182.01,30.4423723]
[1736815729577,8.31306116,182.13,182.02,10.6625]
[1736815729870,2.7469,182.11,182.07,8.31306116]
[1736815731079,2.7467,182.12,182.09,8.31306116]
[1736815731378,2.7467,182.12,182.07,2.7474]
[1736815731973,13.03282535,182.17,182.06,13.03282535]
[1736815732566,13.03282535,182.17,182.06,15.78032535]
[1736815732976,2.7464,182.14,182.06,15.78032535]
[1736815733174,5.68,182.19,182.07,2.7473]
[1736815733475,13.03282535,182.17,182.06,13.03282535]
[1736815733667,2.747,182.1,182.04,2.7477]
[1736815733866,13.03282535,182.14,182.03,204.03282535]
[1736815734072,13.03282535,182.14,182.03,13.03282535]
[1736815734270,13.03282535,182.11,182.02,3.3794]
[1736815734471,1.7139,182.13,182.02,16.41222535]
[1736815734778,13.03282535,182.14,182.05,2.7477]
[1736815734978,13.03282535,182.14,182.03,1.6828]
[1736815735379,2.7472,182.09,182.04,2.7478]
[1736815736379,2.7473,182.08,182.03,4.4307]
[1736815736681,13.03282535,182.14,182.02,3.3794]
[1736815736882,13.03282535,182.1,182.02,3.3794]
[1736815737071,2.7473,182.08,182.02,3.3794]
[1736815737275,13.03282535,182.1,182.02,3.3794]
[1736815737478,13.03282535,182.03,181.86,7.61059307]
[1736815737777,13.03282535,182.0,181.9,3.2109]
[1736815739589,13.03282535,182.03,181.92,13.03282535]
[1736815740789,13.03282535,182.06,181.93,196.76]
[1736815741186,2.7481,182.03,181.97,2.7488]
[1736815741387,2.7481,182.03,181.93,196.76]
[1736815741587,13.03282535,182.06,181.93,196.76]
[1736815741786,13.03282535,182.06,181.95,13.03282535]
[1736815742689,14.73072535,182.09,181.96,1.7113]
[1736815742890,2.7477,182.05,182.0,2.7484]
[1736815743394,14.73072535,182.09,181.96,1.7113]
[1736815743395,2.7473,182.08,181.98,13.03282535]
[1736815743597,94.28,182.17,182.01,13.03282535]
[1736815743598,13.03282535,182.12,182.01,13.03282535]
[1736815745189,2.7472,182.08,182.03,2.7478]
[1736815745792,2.7472,182.08,182.02,2.7481]
[1736815746988,2.7476,182.06,182.01,13.03282535]
[1736815747187,13.03282535,182.09,182.0,8.5083]
[1736815747387,13.03282535,182.09,182.0,5.76]
[1736815748694,2.7474,182.07,182.01,2.7481]
[1736815749794,2.7473,182.08,182.03,2.748]
[1736815750292,2.747,182.1,182.04,2.7477]
[1736815750488,13.03282535,182.12,182.01,13.03282535]
[1736815750992,13.03282535,182.12,182.01,204.03282535]
[1736815751187,2.7471,182.1,182.04,2.7478]
[1736815751387,13.03282535,182.09,182.01,191.0]
[1736815752591,2.7478,182.04,182.01,191.0]
[1736815752792,13.03282535,182.06,181.99,3.3357]
[1736815754291,2.7481,182.03,181.99,3.3357]
[1736815754497,13.03282535,182.06,181.99,3.3357]
[1736815756803,13.03282535,182.09,181.99,3.3357]
[1736815757104,13.03282535,182.14,182.03,13.03282535]
[1736815757499,2.7469,182.11,182.06,2.7474]
[1736815757802,120.7011731,182.15,182.06,13.03282535]
[1736815758106,120.7011731,182.15,182.07,3.3842]
[1736815758302,120.7011731,182.15,182.08,2.7471]
[1736815759605,2.7468,182.11,182.07,3.3842]
[1736815760199,2.7466,182.12,182.07,6.1315]
[1736815760400,120.7011731,182.15,182.07,3.3842]
[1736815761205,2.7465,182.13,182.09,2.747]
[1736815761905,2.7464,182.14,182.09,2.747]
[1736815762105,10.10356063,182.15,182.07,3.3842]
[1736815762403,2.7461,182.16,182.09,13.03282535]
[1736815762599,2.7461,182.16,182.09,18.79282535]
[1736815762806,2.7461,182.16,182.11,2.7467]
[1736815763406,2.7461,182.16,182.11,2.7468]
[1736815764204,13.03282535,182.2,182.09,18.79282535]
[1736815764404,2.7464,182.14,182.1,2.7469]
[1736815765201,13.03282535,182.2,182.12,2.7466]
[1736815765611,2.7458,182.18,182.12,2.7466]
[1736815765807,13.03282535,182.2,182.12,2.7466]
[1736815766112,2.7457,182.19,182.09,18.79282535]
[1736815766418,13.03282535,182.23,182.13,13.03282535]
[1736815766706,2.7454,182.2,182.13,15.77912535]
[1736815766910,13.03282535,182.23,182.13,15.77912535]
[1736815767611,2.7457,182.19,182.13,15.77912535]
[1736815767806,13.03282535,182.23,182.13,15.77912535]
[1736815768307,13.03282535,182.23,182.14,2.7463]
[1736815768904,13.03282535,182.23,182.15,2.7461]
[1736815770110,13.03282535,182.23,182.14,2.7463]
[1736815770702,13.03282535,182.2,182.1,13.03282535]
[1736815770906,13.03282535,182.2,182.09,191.0]
[1736815771107,13.03282535,182.2,182.09,193.747]
[1736815771108,2.7463,182.15,182.09,193.747]
[1736815771709,2.7465,182.13,182.09,193.747]
[1736815772108,13.03282535,182.2,182.09,193.747]
[1736815772509,2.7464,182.14,182.09,193.747]
[1736815772810,13.03282535,182.2,182.09,191.0]
[1736815773005,2.7465,182.13,182.09,191.0]
[1736815773208,13.03282535,182.17,182.09,191.0]
[1736815774112,2.7465,182.13,182.09,191.0]
[1736815774508,13.03282535,182.17,182.09,191.0]
[1736815774706,2.7467,182.12,182.09,191.0]
[1736815778318,13.03282535,182.17,182.09,191.0]
[1736815778511,2.7468,182.11,182.09,191.0]
[1736815779115,13.03282535,182.17,182.09,191.0]
[1736815779313,2.7467,182.12,182.09,191.0]
[1736815785717,13.03282535,182.2,182.1,13.03282535]
[1736815786419,2.7466,182.13,182.1,13.03282535]
[1736815786719,13.03282535,182.2,182.09,191.0]
[1736815788117,2.7467,182.12,182.09,191.0]
[1736815788418,116.28012745,182.22,182.09,191.0]
[1736815788419,13.03282535,182.17,182.09,191.0]
[1736815788718,2.7469,182.1,182.07,3.3842]
[1736815790917,13.03282535,182.17,182.07,3.3842]
[1736815791418,2.7469,182.11,182.07,6.1315]
[1736815791918,13.03282535,182.17,182.07,3.3842]
[1736815792217,2.747,182.1,182.07,3.3842]
[1736815794220,2.7471,182.09,182.07,3.3842]
[1736815796922,2.7472,182.08,182.07,3.3842]
[1736815798313,13.03282535,182.14,182.04,17.34072535]
[1736815798518,13.03282535,182.11,182.02,3.2007]
[1736815799420,2.7479,182.04,182.02,3.2007]
[1736815799619,13.03282535,182.11,182.02,3.2007]
[1736815799921,2.7472,182.09,182.02,3.2007]
[1736815800121,13.03282535,182.11,182.02,3.2007]
[1736815800920,2.7476,182.06,182.02,3.2007]
[1736815801322,13.03282535,182.11,182.02,3.2007]
[1736815801527,13.03282535,182.14,182.04,13.03282535]
[1736815802323,2.7469,182.11,182.04,13.03282535]
[1736815802523,13.03282535,182.14,182.04,13.03282535]
[1736815802916,13.03282535,182.14,182.06,2.7474]
[1736815803515,13.03282535,182.14,182.02,3.2007]
[1736815803713,14.65852535,182.16,182.02,3.2007]
[1736815803714,13.03282535,182.08,182.02,3.2007]
[1736815804828,2.748,182.03,182.02,3.2007]
[1736815805325,2.7476,182.06,182.02,3.2007]
[1736815805521,13.03282535,182.11,182.02,3.2007]
[1736815806027,2.7472,182.08,182.03,2.7479]
[1736815806625,2.7472,182.08,182.02,3.2007]
[1736815806626,13.03282535,182.11,182.02,3.2007]
[1736815806821,2.7471,182.1,182.05,2.7477]
[1736815807824,13.03282535,182.14,182.03,13.03282535]
[1736815808028,2.7468,182.11,182.07,2.7474]
[1736815808922,13.03282535,182.17,182.06,13.03282535]
[1736815809320,2.7462,182.15,182.1,2.7469]
[1736815809521,2.7462,182.15,182.06,14.74072535]
[1736815809923,2.746,182.16,182.09,13.03282535]
[1736815810123,10.10141936,182.19,182.12,13.03282535]
[1736815810523,12.84701936,182.19,182.12,13.03282535]
[1736815810923,12.84701936,182.19,182.14,2.7463]
[1736815812024,10.10141936,182.19,182.14,2.7463]
[1736815812329,2.7455,182.2,182.15,2.7461]
[1736815812528,2.7455,182.2,182.12,13.03282535]
[1736815812726,14.72532535,182.23,182.14,2.7463]
[1736815812923,2.7457,182.19,182.14,2.7463]
[1736815818135,2.7457,182.18,182.14,2.7463]
[1736815819130,2.7462,182.15,182.11,2.7467]
[1736815819334,13.03282535,182.2,182.1,3.2779]
[1736815819530,14.72532535,182.23,182.1,3.2779]
[1736815819736,2.7457,182.19,182.15,2.7462]
[1736815820136,2.7457,182.19,182.14,2.7463]
[1736815820833,2.7458,182.18,182.14,2.7463]
[1736815821030,13.03282535,182.2,182.11,2.7466]
[1736815821227,13.03282535,182.2,182.1,3.2779]
[1736815821635,2.7463,182.15,182.1,6.0247]
[1736815822333,2.7463,182.15,182.11,2.7468]
[1736815822629,13.03282535,182.2,182.1,3.2779]
[1736815822834,13.03282535,182.2,182.14,2.7463]
[1736815823034,13.03282535,182.2,182.1,3.2779]
[1736815823336,2.7458,182.18,182.13,2.7464]
[1736815823536,2.7458,182.18,182.1,3.2779]
[1736815824536,13.03282535,182.2,182.14,2.7463]
[1736815824738,2.7456,182.19,182.14,2.7463]
[1736815824934,13.03282535,182.2,182.14,2.7463]
[1736815825936,13.03282535,182.2,182.13,2.7464]
[1736815826535,2.7458,182.18,182.13,2.7464]
[1736815827636,13.03282535,182.2,182.13,2.7464]
[1736815827837,2.7459,182.17,182.13,2.7464]
[1736815828534,2.7459,182.17,182.14,2.7463]
[1736815828737,13.03282535,182.2,182.1,3.2779]
[1736815828935,2.7455,182.2,182.1,3.2779]
[1736815829137,13.03282535,182.23,182.15,2.7461]
[1736815829534,2.7453,182.21,182.15,2.7461]
[1736815829734,13.03282535,182.23,182.1,3.2779]
[1736815829932,13.03282535,182.23,182.16,2.746]
[1736815830133,13.03282535,182.23,182.1,3.2779]
[1736815831341,13.03282535,182.23,182.13,13.03282535]
[1736815832140,2.7453,182.21,182.17,2.7458]
[1736815832338,10.0990699,182.24,182.13,13.03282535]
[1736815832641,12.8439699,182.24,182.19,2.7454]
[1736815832846,10.0990699,182.24,182.19,2.7454]
[1736815833331,2.7451,182.23,182.19,2.7454]
[1736815834038,12.8439699,182.24,182.2,2.7453]
[1736815834243,10.0990699,182.24,182.17,3.3145]
[1736815834633,10.0990699,182.24,182.22,2.745]
[1736815834840,0.2422,182.34,182.22,18.73282535]
[1736815834841,1.6727,182.34,182.22,18.73282535]
[1736815835045,0.94224404,182.33,182.25,13.03282535]
[1736815835242,0.94224404,182.32,182.25,13.03282535]
[1736815835543,0.94224404,182.31,182.28,13.03282535]
[1736815835741,150.39069694,182.37,182.28,13.03282535]
[1736815835939,13.27502535,182.39,182.28,13.03282535]
[1736815836340,13.20202535,182.39,182.29,5.72]
[1736815836944,13.03282535,182.42,182.31,13.03282535]
[1736815837745,2.7425,182.4,182.33,2.7434]
[1736815838441,2.7426,182.39,182.33,2.7434]
[1736815838844,13.03282535,182.42,182.31,13.03282535]
[1736815838845,13.03282535,182.42,182.31,15.77652535]
[1736815839148,2.7429,182.37,182.31,15.77652535]
[1736815839342,13.03282535,182.42,182.31,13.03282535]
[1736815839647,13.03282535,182.42,182.32,2.7435]
[1736815840443,2.7427,182.38,182.32,2.7435]
[1736815840844,13.03282535,182.42,182.32,2.7435]
[1736815841444,2.7426,182.39,182.32,2.7435]
[1736815841648,13.03282535,182.42,182.32,2.7435]
[1736815842046,2.743,182.37,182.31,15.77642535]
[1736815842247,13.03282535,182.42,182.31,13.03282535]
[1736815843248,2.7432,182.35,182.31,13.03282535]
[1736815845054,13.03282535,182.39,182.3,3.289]
[1736815845556,2.743,182.36,182.31,2.7437]
[1736815845746,13.03282535,182.42,182.3,3.289]
[1736815845946,13.03282535,182.42,182.32,2.7436]
[1736815846445,13.03282535,182.42,182.31,13.03282535]
[1736815846651,2.7427,182.39,182.33,2.7434]
[1736815847049,2.7424,182.4,182.35,2.7431]
[1736815847647,5.7,182.51,182.37,13.03282535]
[1736815847946,13.03282535,182.49,182.37,13.03282535]
[1736815848459,2.7417,182.45,182.4,2.7424]
[1736815848755,2.7421,182.42,182.37,2.7428]
[1736815848958,200.29392173,182.46,182.35,5.7]
[1736815849448,2.742,182.43,182.38,2.7426]
[1736815850054,187.26109638,182.46,182.41,2.7422]
[1736815850251,14.54098438,182.46,182.39,13.03282535]
[1736815850458,14.54098438,182.46,182.42,13.03282535]
[1736815851455,14.54098438,182.46,182.4,3.3758]
[1736815851655,14.54098438,182.46,182.39,13.03282535]
[1736815851855,14.54098438,182.46,182.37,5.72]
[1736815852055,14.54098438,182.46,182.37,8.4627]
[1736815852056,2.7419,182.44,182.37,8.4627]
[1736815852256,14.54098438,182.46,182.37,8.4627]
[1736815852862,14.54098438,182.46,182.37,5.72]
[1736815853359,2.7419,182.44,182.37,5.72]
[1736815853560,14.54098438,182.46,182.37,5.72]
[1736815854559,2.7422,182.42,182.37,5.72]
[1736815855061,2.7423,182.41,182.37,5.72]
[1736815855259,2.7423,182.41,182.37,8.4629]
[1736815855761,2.7421,182.42,182.37,8.4629]
[1736815855960,14.54098438,182.46,182.39,2.7425]
[1736815856161,2.7418,182.44,182.39,2.7425]
[1736815856359,14.54098438,182.46,182.39,13.03282535]
[1736815856555,14.54098438,182.46,182.41,2.7422]
[1736815856955,14.54098438,182.46,182.39,13.03282535]
[1736815857963,2.7418,182.44,182.39,15.77522535]
[1736815858663,2.7421,182.42,182.37,5.72]
[1736815858855,14.54098438,182.46,182.36,13.03282535]
[1736815859259,14.54098438,182.46,182.36,15.77582535]
[1736815859865,2.7424,182.41,182.36,15.77582535]
[1736815860260,14.54098438,182.46,182.36,15.77582535]
[1736815860660,2.7424,182.41,182.36,15.77582535]
[1736815861262,14.54098438,182.46,182.36,15.77582535]
[1736815861463,2.7425,182.4,182.36,15.77582535]
[1736815862367,2.7426,182.39,182.36,15.77582535]
[1736815863868,2.7425,182.4,182.37,2.7428]
[1736815864364,14.54098438,182.46,182.36,13.03282535]
[1736815864569,2.7422,182.42,182.39,2.7425]
[1736815864870,14.54098438,182.46,182.36,13.03282535]
[1736815865265,13.03282535,182.44,182.35,191.0]
[1736815865465,3.2451,182.45,182.36,13.03282535]
[1736815865871,2.7424,182.41,182.37,2.7428]
[1736815866071,3.2451,182.45,182.36,13.03282535]
[1736815866272,14.54098438,182.46,182.36,13.03282535]
[1736815866465,2.7421,182.43,182.38,2.7426]
[1736815868074,2.7424,182.4,182.36,15.77582535]
[1736815868371,13.03282535,182.44,182.35,191.0]
[1736815868673,2.7422,182.42,182.35,191.0]
[1736815868970,13.03282535,182.44,182.35,191.0]
[1736815869170,2.7431,182.36,182.33,13.03282535]
[1736815869373,2.7431,182.36,182.3,78.02136142]
[1736815870174,2.7425,182.4,182.33,13.03282535]
[1736815870373,14.54098438,182.46,182.36,13.03282535]
[1736815871876,2.7421,182.43,182.38,2.7427]
[1736815872470,2.7421,182.42,182.38,2.7427]
[1736815872867,14.54098438,182.46,182.36,13.03282535]
[1736815873179,14.54098438,182.46,182.35,5.74]
[1736815873180,13.03282535,182.44,182.35,5.74]
[1736815873665,2.7427,182.39,182.35,8.4831]
[1736815873871,2.7427,182.39,182.35,5.74]
[1736815874573,2.743,182.37,182.33,13.03282535]
[1736815874969,2.743,182.37,182.32,2.7435]
[1736815875174,2.743,182.36,182.32,2.7435]
[1736815875374,13.03282535,182.41,182.32,2.7435]
[1736815875572,2.7429,182.37,182.33,2.7434]
[1736815877070,5.1051,182.43,182.36,13.03282535]
[1736815877271,14.54098438,182.46,182.36,13.03282535]
[1736815877869,14.54098438,182.46,182.36,18.77282535]
[1736815878477,2.742,182.43,182.39,2.7426]
[1736815878677,14.54098438,182.46,182.36,18.77282535]
[1736815878976,2.7423,182.41,182.37,2.7428]
[1736815879175,14.54098438,182.46,182.36,18.77282535]
[1736815879375,14.54098438,182.46,182.36,5.74]
[1736815879574,13.03282535,182.44,182.36,5.74]
[1736815879877,13.03282535,182.44,182.33,15.77622535]
[1736815880576,13.03282535,182.44,182.34,2.7433]
[1736815880978,13.03282535,182.44,182.33,13.03282535]
[1736815882081,2.7426,182.39,182.35,2.7431]
[1736815884977,2.7422,182.42,182.38,2.7427]
[1736815885183,2.7422,182.42,182.36,13.03282535]
[1736815885987,14.54098438,182.46,182.39,13.03282535]
[1736815887083,2.7418,182.44,182.41,2.7423]
[1736815887284,14.54098438,182.46,182.39,13.03282535]
[1736815887488,14.54098438,182.46,182.36,13.03282535]
[1736815887783,2.7423,182.42,182.37,2.7428]
[1736815888177,2.7423,182.42,182.36,13.03282535]
[1736815888377,2.7419,182.44,182.39,13.03282535]
[1736815890083,2.7419,182.44,182.4,2.7423]
[1736815893287,14.54098438,182.46,182.39,13.03282535]
[1736815893488,2.7414,182.47,182.43,2.7419]